[Event "94th Paris-ch  2019"]
[Site "Paris"]
[Date "2019.07.07"]
[Round "1.13"]
[White "French, Max"]
[Black "Vardaan Nagpal"]
[Result "1/2-1/2"]
[ECO "E23"]
[WhiteElo "2232"]
[BlackElo "2355"]
[Annotator "NA"]
[PlyCount "211"]
[EventDate "2019.07.07"]
[EventType "swiss"]
[EventCountry "FRA"]
[SourceTitle "playchess.com"]
[Source "ChessBase"]
[SourceQuality "1"]
[TimeControl "5400+30"]

1. d4 {[%emt 0:00:00]} Nf6 {[%emt 0:00:01]} 2. c4 {[%emt 0:00:00]} e6 {[%emt 0:00:04]} 3. Nc3 {[%emt 0:00:18]} Bb4 {[%emt 0:00:15]} 4. Qb3 {[%emt 0:01:15]} c5 {[%emt 0:04:37]} 5. dxc5 {[%emt 0:00:38]} Nc6 {[%emt 0:00:21]} 6. Bg5 {[%emt 0:09:19]} Qa5 {[%emt 0:11:30]} 7. Bxf6 {[%emt 0:03:06]} gxf6 {[%emt 0:00:09]} 8. Nf3 {[%emt 0:11:09]} Bxc3+ {[%emt 0:09:32]} 9. Qxc3 {[%emt 0:07:51]} Qxc3+ {[%emt 0:00:18]} 10. bxc3 {[%emt 0:00:05]} b6 {[%emt 0:00:05]} 11. cxb6 {[%emt 0:08:46]} axb6 {[%emt 0:00:17]} 12. e3 {[%emt 0:00:29]} Ke7 {[%emt 0:10:21]} 13. Be2 {[%emt 0:10:47]} Ba6 {[%emt 0:00:45]} 14. Rb1 {[%emt 0:02:11]} Na5 {[%emt 0:07:49]} 15. Rxb6 {[%emt 0:09:32]} Bxc4 {[%emt 0:00:15]} 16. Nd2 {[%emt 0:04:12]} Bxa2 {[%emt 0:03:18]} 17. O-O {[%emt 0:01:20]} Rhb8 {[%emt 0:00:46]} 18. Rb5 {[%emt 0:02:49]} Rxb5 {[%emt 0:03:23]} 19. Bxb5 {[%emt 0:00:07]} Rb8 {[%emt 0:00:02]} 20. Ra1 {[%emt 0:01:44]} Rxb5 {[%emt 0:04:51]} 21. Rxa2 {[%emt 0:00:10]} Nc4 {[%emt 0:02:31]} 22. Kf1 {[%emt 0:03:49]} Ne5 {[%emt 0:03:40]} 23. Ke2 {[%emt 0:00:40]} f5 {[%emt 0:00:57]} 24. Nf3 {[%emt 0:01:46]} Ng4 {[%emt 0:01:55]} 25. c4 {[%emt 0:01:08]} Rb4 {[%emt 0:07:02]} 26. Rc2 {[%emt 0:01:29]} Nf6 {[%emt 0:00:24]} 27. Ne1 {[%emt 0:01:21]} Rb8 {[%emt 0:04:21]} 28. Nd3 {[%emt 0:00:24]} Rg8 {[%emt 0:00:25]} 29. g3 {[%emt 0:01:12]} Rc8 {[%emt 0:00:07]} 30. c5 {[%emt 0:01:08]} Nd5 {[%emt 0:01:26]} 31. Rc4 {[%emt 0:02:08]} Kf6 {[%emt 0:00:47]} 32. Kf3 {[%emt 0:01:54]} Ne7 {[%emt 0:03:07]} 33. Rh4 {[%emt 0:02:26]} Kg7 {[%emt 0:00:13]} 34. Rd4 {[%emt 0:00:32]} Rc7 {[%emt 0:01:56]} 35. e4 {[%emt 0:02:34]} fxe4+ {[%emt 0:01:33]} 36. Kxe4 {[%emt 0:00:32]} Nc6 {[%emt 0:03:04]} 37. Ra4 {[%emt 0:00:53]} Rc8 {[%emt 0:02:08]} 38. Ke3 {[%emt 0:00:32]} f5 {[%emt 0:01:37]} 39. g4 {[%emt 0:01:47]} Rf8 {[%emt 0:04:27]} 40. gxf5 {[%emt 0:00:14]} Rxf5 {[%emt 0:00:09]} 41. Rg4+ {[%emt 0:00:19]} Kf6 {[%emt 0:01:53]} 42. Rf4 {[%emt 0:00:08]} Kg5 {[%emt 0:01:12]} 43. h4+ {[%emt 0:03:00]} Kg6 {[%emt 0:00:45]} 44. Rg4+ {[%emt 0:00:22]} Kh6 {[%emt 0:00:59]} 45. Rf4 {[%emt 0:01:51]} Rd5 {[%emt 0:00:30]} 46. Re4 {[%emt 0:01:13]} Kg7 {[%emt 0:02:25]} 47. f3 {[%emt 0:00:29]} Kf7 {[%emt 0:00:51]} 48. Rf4+ {[%emt 0:00:43]} Ke7 {[%emt 0:00:08]} 49. Re4 {[%emt 0:01:13]} h6 {[%emt 0:00:41]} 50. Rc4 {[%emt 0:00:56]} Kd8 {[%emt 0:01:10]} 51. Ke4 {[%emt 0:00:43]} Kc7 {[%emt 0:00:31]} 52. Ke3 {[%emt 0:01:28]} Ne5 {[%emt 0:01:33]} 53. Nxe5 {[%emt 0:00:31]} Rxe5+ {[%emt 0:00:01]} 54. Kf4 {[%emt 0:00:54]} Rf5+ {[%emt 0:00:06]} 55. Ke4 {[%emt 0:00:23]} Kc6 {[%emt 0:00:05]} 56. f4 {[%emt 0:00:47]} Rh5 {[%emt 0:00:24]} 57. Rc1 {[%emt 0:00:19]} Rxh4 {[%emt 0:00:47]} 58. Rc2 {[%emt 0:00:05]} Rh5 {[%emt 0:00:13]} 59. Ra2 {[%emt 0:00:08]} Rxc5 {[%emt 0:00:13]} 60. Ra6+ {[%emt 0:00:05]} Kc7 {[%emt 0:00:12]} 61. Ra8 {[%emt 0:00:29]} Kd6 {[%emt 0:01:40]} 62. Rh8 {[%emt 0:00:13]} h5 {[%emt 0:00:11]} 63. Rh7 {[%emt 0:00:18]} Kc6 {[%emt 0:00:10]} 64. Rh6 {[%emt 0:01:02]} Rf5 {[%emt 0:00:11]} 65. Rg6 {[%emt 0:00:36]} d5+ {[%emt 0:00:10]} 66. Ke3 {[%emt 0:00:06]} Kd6 {[%emt 0:00:06]} 67. Rh6 {[%emt 0:00:16]} Ke7 {[%emt 0:00:06]} 68. Rh7+ {[%emt 0:00:41]} Kd6 {[%emt 0:00:28]} 69. Rh6 {[%emt 0:00:05]} Kd7 {[%emt 0:01:31]} 70. Rh7+ {[%emt 0:00:08]} Kc6 {[%emt 0:00:05]} 71. Rh6 {[%emt 0:00:42]} Kd6 {[%emt 0:00:03]} 72. Rg6 {[%emt 0:00:16]} d4+ {[%emt 0:00:58]} 73. Kxd4 {[%emt 0:01:08]} Rxf4+ {[%emt 0:00:01]} 74. Ke3 {[%emt 0:00:09]} Ra4 {[%emt 0:00:31]} 75. Rg5 {[%emt 0:00:53]} h4 {[%emt 0:01:10]} 76. Rh5 {[%emt 0:00:07]} Ke7 {[%emt 0:01:10]} 77. Kf3 {[%emt 0:00:49]} Kf6 {[%emt 0:00:47]} 78. Rh6+ {[%emt 0:00:33]} Kf5 {[%emt 0:00:10]} 79. Rh5+ {[%emt 0:00:05]} Kg6 {[%emt 0:00:07]} 80. Re5 {[%emt 0:00:13]} Kf6 {[%emt 0:00:09]} 81. Rh5 {[%emt 0:00:17]} e5 {[%emt 0:00:55]} 82. Ke3 {[%emt 0:01:32]} Rb4 {[%emt 0:01:05]} 83. Rh8 {[%emt 0:00:34]} Kf5 {[%emt 0:01:04]} 84. Rh5+ {[%emt 0:00:46]} Ke6 {[%emt 0:00:44]} 85. Rh8 {[%emt 0:00:06]} Ra4 {[%emt 0:00:56]} 86. Kf3 {[%emt 0:00:40]} Rf4+ {[%emt 0:00:43]} 87. Ke3 {[%emt 0:00:10]} Kf5 {[%emt 0:01:18]} 88. Rh5+ {[%emt 0:00:06]} Kf6 {[%emt 0:00:10]} 89. Rh8 {[%emt 0:01:01]} Kg6 {[%emt 0:00:09]} 90. Rg8+ {[%emt 0:00:42]} Kh7 {[%emt 0:01:12]} 91. Rg5 {[%emt 0:00:32]} Kh6 {[%emt 0:00:06]} 92. Rxe5 {[%emt 0:00:22]} Rf6 {[%emt 0:00:01]} 93. Re8 {[%emt 0:01:04]} Kh5 {[%emt 0:00:28]} 94. Rh8+ {[%emt 0:00:37]} Kg4 {[%emt 0:00:03]} 95. Rg8+ {[%emt 0:00:06]} Kh3 {[%emt 0:00:06]} 96. Ke2 {[%emt 0:00:46]} Kh2 {[%emt 0:00:07]} 97. Rg7 {[%emt 0:00:09]} h3 {[%emt 0:00:08]} 98. Rg8 {[%emt 0:00:32]} Kh1 {[%emt 0:00:12]} 99. Rg7 {[%emt 0:00:26]} Ra6 {[%emt 0:00:17]} 100. Kf2 {[%emt 0:00:35]} Ra2+ {[%emt 0:00:10]} 101. Kf1 {[%emt 0:00:10]} Rg2 {[%emt 0:00:07]} 102. Rh7 {[%emt 0:00:23]} Kh2 {[%emt 0:00:23]} 103. Rh8 {[%emt 0:00:40]} Rg7 {[%emt 0:00:11]} 104. Rf8 {[%emt 0:01:18]} Rg2 {[%emt 0:00:25]} 105. Rh8 {[%emt 0:00:45]} Rg4 {[%emt 0:00:43]} 106. Rf8 {[%emt 0:00:24]} 1/2-1/2

[Event "94th Paris-ch  2019"]
[Site "Paris"]
[Date "2019.07.07"]
[Round "1.14"]
[White "Philippe, Guillaume"]
[Black "Lux, Hugo de Melo"]
[Result "1-0"]
[ECO "A03"]
[WhiteElo "2344"]
[BlackElo "2231"]
[Annotator "NA"]
[PlyCount "77"]
[EventDate "2019.07.07"]
[EventType "swiss"]
[EventCountry "FRA"]
[SourceTitle "playchess.com"]
[Source "ChessBase"]
[SourceQuality "1"]
[TimeControl "5400+30"]

1. f4 {[%emt 0:00:00]} Nf6 {[%emt 0:00:30]} 2. Nf3 {[%emt 0:00:02]} b6 {[%emt 0:00:17]} 3. g3 {[%emt 0:01:14]} Bb7 {[%emt 0:00:09]} 4. Bg2 {[%emt 0:00:08]} g6 {[%emt 0:02:48]} 5. d3 {[%emt 0:02:22]} d5 {[%emt 0:00:22]} 6. O-O {[%emt 0:01:38]} Bg7 {[%emt 0:00:04]} 7. a4 {[%emt 0:03:48]} O-O {[%emt 0:06:08]} 8. c3 {[%emt 0:02:09]} Nbd7 {[%emt 0:16:01]} 9. a5 {[%emt 0:02:19]} Qc8 {[%emt 0:02:07]} 10. Na3 {[%emt 0:12:15]} c5 {[%emt 0:11:33]} 11. h3 {[%emt 0:00:44]} Re8 {[%emt 0:04:30]} 12. g4 {[%emt 0:01:28]} Bc6 {[%emt 0:08:13]} 13. Nc2 {[%emt 0:05:54]} Qb7 {[%emt 0:13:15]} 14. Qe1 {[%emt 0:04:35]} e5 {[%emt 0:03:07]} 15. fxe5 {[%emt 0:03:00]} Nxe5 {[%emt 0:00:04]} 16. Qh4 {[%emt 0:00:42]} Nxf3+ {[%emt 0:03:59]} 17. Bxf3 {[%emt 0:00:08]} Nd7 {[%emt 0:00:27]} 18. axb6 {[%emt 0:11:09]} axb6 {[%emt 0:03:52]} 19. Rxa8 {[%emt 0:00:10]} Qxa8 {[%emt 0:00:01]} 20. Bh6 {[%emt 0:01:16]} Bh8 {[%emt 0:01:47]} 21. Qf2 {[%emt 0:01:52]} Re7 {[%emt 0:04:00]} 22. Bg5 {[%emt 0:03:28]} f6 {[%emt 0:00:12]} 23. Bf4 {[%emt 0:00:31]} Ne5 {[%emt 0:01:52]} 24. Bg2 {[%emt 0:00:12]} Qe8 {[%emt 0:01:00]} 25. b4 {[%emt 0:03:17]} Nd7 {[%emt 0:05:57]} 26. Bf3 {[%emt 0:02:41]} f5 {[%emt 0:06:14]} 27. c4 {[%emt 0:04:55]} Qf7 {[%emt 0:01:07]} 28. Qg2 {[%emt 0:01:59]} Ne5 {[%emt 0:01:35]} 29. Bxd5 {[%emt 0:01:24]} Bxd5 {[%emt 0:00:06]} 30. cxd5 {[%emt 0:00:11]} Rd7 {[%emt 0:01:16]} 31. bxc5 {[%emt 0:05:40]} bxc5 {[%emt 0:00:10]} 32. Ne3 {[%emt 0:00:58]} Qe8 {[%emt 0:02:17]} 33. gxf5 {[%emt 0:00:48]} Bf6 {[%emt 0:00:45]} 34. Bxe5 {[%emt 0:02:46]} Bxe5 {[%emt 0:00:36]} 35. Ng4 {[%emt 0:00:06]} Rg7 {[%emt 0:00:35]} 36. f6 {[%emt 0:00:16]} Rf7 {[%emt 0:00:30]} 37. Nh6+ {[%emt 0:00:05]} Kh8 {[%emt 0:00:01]} 38. Nxf7+ {[%emt 0:00:10]} Qxf7 {[%emt 0:00:02]} 39. Qf3 {[%emt 0:00:50]} 1-0

[Event "94th Paris-ch  2019"]
[Site "Paris"]
[Date "2019.07.07"]
[Round "1.15"]
[White "Samoun, Florent"]
[Black "Eden, James"]
[Result "1-0"]
[ECO "C27"]
[WhiteElo "2230"]
[BlackElo "2343"]
[Annotator "NA"]
[PlyCount "109"]
[EventDate "2019.07.07"]
[EventType "swiss"]
[EventCountry "FRA"]
[SourceTitle "playchess.com"]
[Source "ChessBase"]
[SourceQuality "1"]
[TimeControl "5400+30"]

1. e4 {[%emt 0:00:00]} e5 {[%emt 0:00:09]} 2. Nc3 {[%emt 0:00:30]} Nf6 {[%emt 0:00:42]} 3. Bc4 {[%emt 0:01:25]} c6 {[%emt 0:06:37]} 4. d4 {[%emt 0:03:18]} Bb4 {[%emt 0:08:29]} 5. dxe5 {[%emt 0:08:12]} Nxe4 {[%emt 0:04:44]} 6. Qf3 {[%emt 0:03:34]} d5 {[%emt 0:02:01]} 7. exd6 {[%emt 0:00:23]} Nxd6 {[%emt 0:00:20]} 8. Bd3 {[%emt 0:01:08]} O-O {[%emt 0:02:23]} 9. Nge2 {[%emt 0:04:16]} Bxc3+ {[%emt 0:06:40]} 10. Nxc3 {[%emt 0:02:18]} Re8+ {[%emt 0:00:16]} 11. Be3 {[%emt 0:01:02]} Nd7 {[%emt 0:00:43]} 12. O-O-O {[%emt 0:04:05]} Ne5 {[%emt 0:06:45]} 13. Qg3 {[%emt 0:06:26]} Qf6 {[%emt 0:01:37]} 14. Bg5 {[%emt 0:11:47]} Qe6 {[%emt 0:03:00]} 15. Rhe1 {[%emt 0:01:56]} Nxd3+ {[%emt 0:09:00]} 16. Qxd3 {[%emt 0:03:54]} Qxe1 {[%emt 0:01:48]} 17. Rxe1 {[%emt 0:01:10]} Rxe1+ {[%emt 0:00:09]} 18. Nd1 {[%emt 0:13:19]} Re6 {[%emt 0:01:40]} 19. Ne3 {[%emt 0:05:28]} b6 {[%emt 0:03:44]} 20. Bf4 {[%emt 0:12:13]} Ne8 {[%emt 0:01:22]} 21. g4 {[%emt 0:01:03]} h6 {[%emt 0:06:21]} 22. h4 {[%emt 0:01:28]} Nf6 {[%emt 0:10:56]} 23. g5 {[%emt 0:00:52]} hxg5 {[%emt 0:06:59]} 24. hxg5 {[%emt 0:00:05]} Nd7 {[%emt 0:03:49]} 25. Nf5 {[%emt 0:01:37]} Ne5 {[%emt 0:00:17]} 26. Ne7+ {[%emt 0:03:19]} Rxe7 {[%emt 0:03:47]} 27. Qd8+ {[%emt 0:00:07]} Kh7 {[%emt 0:00:05]} 28. Qxe7 {[%emt 0:00:08]} Ng6 {[%emt 0:00:19]} 29. Qxf7 {[%emt 0:00:30]} Bg4 {[%emt 0:00:19]} 30. Be3 {[%emt 0:00:33]} Rd8 {[%emt 0:00:27]} 31. b3 {[%emt 0:01:10]} Rd7 {[%emt 0:04:14]} 32. Qc4 {[%emt 0:00:19]} Bf3 {[%emt 0:00:21]} 33. Kb2 {[%emt 0:01:21]} Bd5 {[%emt 0:03:04]} 34. Qg4 {[%emt 0:00:46]} Nf8 {[%emt 0:00:08]} 35. c4 {[%emt 0:03:38]} Bf7 {[%emt 0:01:06]} 36. Qe4+ {[%emt 0:00:37]} Bg6 {[%emt 0:00:07]} 37. Qh1+ {[%emt 0:00:40]} Kg8 {[%emt 0:00:06]} 38. Qxc6 {[%emt 0:00:14]} Rf7 {[%emt 0:00:19]} 39. a4 {[%emt 0:00:58]} Kh7 {[%emt 0:00:20]} 40. c5 {[%emt 0:00:50]} bxc5 {[%emt 0:00:47]} 41. Bxc5 {[%emt 0:00:39]} a5 {[%emt 0:00:15]} 42. Qh1+ {[%emt 0:00:31]} Kg8 {[%emt 0:00:07]} 43. Qd5 {[%emt 0:00:19]} Kh7 {[%emt 0:00:12]} 44. Qxf7 {[%emt 0:02:39]} Bxf7 {[%emt 0:00:18]} 45. Bxf8 {[%emt 0:00:05]} Kg6 {[%emt 0:00:10]} 46. Be7 {[%emt 0:00:22]} Kf5 {[%emt 0:01:06]} 47. Kc3 {[%emt 0:00:12]} g6 {[%emt 0:00:11]} 48. Bd8 {[%emt 0:00:17]} Be8 {[%emt 0:02:10]} 49. Bxa5 {[%emt 0:00:45]} Ke5 {[%emt 0:00:21]} 50. Kb4 {[%emt 0:00:58]} Kd5 {[%emt 0:00:08]} 51. Bd8 {[%emt 0:00:12]} Kc6 {[%emt 0:00:17]} 52. Ka5 {[%emt 0:00:15]} Kb7 {[%emt 0:01:31]} 53. b4 {[%emt 0:00:13]} Bd7 {[%emt 0:00:06]} 54. b5 {[%emt 0:00:18]} Bf5 {[%emt 0:00:06]} 55. Bf6 {[%emt 0:00:24]} 1-0

[Event "94th Paris-ch  2019"]
[Site "Paris"]
[Date "2019.07.07"]
[Round "1.16"]
[White "Shirazi, Kamran"]
[Black "Moksh Amit Doshi"]
[Result "0-1"]
[ECO "D03"]
[WhiteElo "2343"]
[BlackElo "2229"]
[Annotator "NA"]
[PlyCount "128"]
[EventDate "2019.07.07"]
[EventType "swiss"]
[EventCountry "FRA"]
[SourceTitle "playchess.com"]
[Source "ChessBase"]
[SourceQuality "1"]
[TimeControl "5400+30"]

1. d4 {[%emt 0:00:00]} Nf6 {[%emt 0:00:28]} 2. Bg5 {[%emt 0:00:06]} d5 {[%emt 0:00:50]} 3. c3 {[%emt 0:00:34]} e6 {[%emt 0:02:13]} 4. e3 {[%emt 0:00:40]} c5 {[%emt 0:01:10]} 5. Nd2 {[%emt 0:00:14]} Nbd7 {[%emt 0:01:51]} 6. Bd3 {[%emt 0:01:12]} Be7 {[%emt 0:00:11]} 7. f4 {[%emt 0:00:50]} b6 {[%emt 0:02:46]} 8. Ngf3 {[%emt 0:00:13]} Bb7 {[%emt 0:00:08]} 9. O-O {[%emt 0:00:33]} Ne4 {[%emt 0:06:27]} 10. Ne5 {[%emt 0:05:18]} O-O {[%emt 0:08:29]} 11. Bxe7 {[%emt 0:02:03]} Qxe7 {[%emt 0:03:12]} 12. Qc2 {[%emt 0:00:49]} Nxd2 {[%emt 0:03:33]} 13. Qxd2 {[%emt 0:05:25]} Nxe5 {[%emt 0:00:22]} 14. fxe5 {[%emt 0:00:21]} f6 {[%emt 0:00:32]} 15. exf6 {[%emt 0:00:21]} Rxf6 {[%emt 0:00:08]} 16. Rxf6 {[%emt 0:00:11]} Qxf6 {[%emt 0:02:24]} 17. Rf1 {[%emt 0:00:06]} Qe7 {[%emt 0:00:45]} 18. Qf2 {[%emt 0:00:07]} c4 {[%emt 0:06:15]} 19. Bc2 {[%emt 0:00:05]} g6 {[%emt 0:00:23]} 20. Qg3 {[%emt 0:01:19]} Rf8 {[%emt 0:05:37]} 21. Rxf8+ {[%emt 0:00:20]} Qxf8 {[%emt 0:00:13]} 22. Qc7 {[%emt 0:00:14]} Qc8 {[%emt 0:02:28]} 23. Qe7 {[%emt 0:00:34]} a6 {[%emt 0:01:05]} 24. h4 {[%emt 0:00:15]} Bc6 {[%emt 0:01:52]} 25. h5 {[%emt 0:00:17]} Be8 {[%emt 0:06:22]} 26. h6 {[%emt 0:06:06]} Bf7 {[%emt 0:00:06]} 27. g4 {[%emt 0:03:38]} Qf8 {[%emt 0:01:37]} 28. Qg5 {[%emt 0:08:22]} b5 {[%emt 0:00:13]} 29. e4 {[%emt 0:08:56]} b4 {[%emt 0:00:39]} 30. cxb4 {[%emt 0:19:07]} Qxb4 {[%emt 0:00:07]} 31. Qd8+ {[%emt 0:00:26]} Qf8 {[%emt 0:00:06]} 32. Qxf8+ {[%emt 0:03:08]} Kxf8 {[%emt 0:00:06]} 33. e5 {[%emt 0:03:18]} Be8 {[%emt 0:00:26]} 34. Kf2 {[%emt 0:00:06]} Ke7 {[%emt 0:00:15]} 35. Ke3 {[%emt 0:00:01]} Kd8 {[%emt 0:00:32]} 36. Kd2 {[%emt 0:07:54]} Kc7 {[%emt 0:01:41]} 37. Kc3 {[%emt 0:00:27]} Kb6 {[%emt 0:00:09]} 38. Kb4 {[%emt 0:01:25]} a5+ {[%emt 0:01:33]} 39. Ka3 {[%emt 0:00:59]} Kb7 {[%emt 0:02:15]} 40. b3 {[%emt 0:02:17]} cxb3 {[%emt 0:00:14]} 41. axb3 {[%emt 0:00:08]} Kb6 {[%emt 0:01:57]} 42. b4 {[%emt 0:02:11]} Ka6 {[%emt 0:01:12]} 43. bxa5 {[%emt 0:01:36]} Kxa5 {[%emt 0:00:07]} 44. g5 {[%emt 0:00:33]} Bf7 {[%emt 0:05:41]} 45. Ba4 {[%emt 0:00:04]} Bg8 {[%emt 0:00:06]} 46. Be8 {[%emt 0:00:18]} Kb6 {[%emt 0:00:08]} 47. Kb4 {[%emt 0:00:02]} Kc7 {[%emt 0:00:09]} 48. Kc5 {[%emt 0:07:47]} Kd8 {[%emt 0:00:31]} 49. Bxg6 {[%emt 0:01:32]} hxg6 {[%emt 0:01:11]} 50. Kd6 {[%emt 0:00:08]} Ke8 {[%emt 0:00:19]} 51. h7 {[%emt 0:00:29]} Bxh7 {[%emt 0:00:07]} 52. Kxe6 {[%emt 0:00:03]} Bg8+ {[%emt 0:00:56]} 53. Kf6 {[%emt 0:01:35]} Bf7 {[%emt 0:00:10]} 54. e6 {[%emt 0:09:57]} Bg8 {[%emt 0:00:07]} 55. Kxg6 {[%emt 0:00:12]} Ke7 {[%emt 0:01:09]} 56. Kf5 {[%emt 0:00:44]} Bxe6+ {[%emt 0:00:07]} 57. Ke5 {[%emt 0:00:07]} Bg8 {[%emt 0:00:34]} 58. Kf5 {[%emt 0:00:32]} Kf7 {[%emt 0:01:21]} 59. Ke5 {[%emt 0:00:51]} Kg6 {[%emt 0:00:06]} 60. Kf4 {[%emt 0:00:03]} Bf7 {[%emt 0:00:14]} 61. Kg4 {[%emt 0:00:03]} Be6+ {[%emt 0:00:06]} 62. Kf4 {[%emt 0:00:06]} Bf5 {[%emt 0:00:07]} 63. Ke5 {[%emt 0:00:05]} Be4 {[%emt 0:00:08]} 64. Kf4 {[%emt 0:00:11]} Kh5 {[%emt 0:00:04]} 0-1

[Event "94th Paris-ch  2019"]
[Site "Paris"]
[Date "2019.07.07"]
[Round "1.17"]
[White "Albaric, Etienne"]
[Black "Bonte, Andrei-Mihai"]
[Result "0-1"]
[ECO "B76"]
[WhiteElo "2225"]
[BlackElo "2337"]
[Annotator "NA"]
[PlyCount "76"]
[EventDate "2019.07.07"]
[EventType "swiss"]
[EventCountry "FRA"]
[SourceTitle "playchess.com"]
[Source "ChessBase"]
[SourceQuality "1"]
[TimeControl "5400+30"]

1. e4 {[%emt 0:00:00]} c5 {[%emt 0:00:00]} 2. Nf3 {[%emt 0:00:00]} d6 {[%emt 0:00:00]} 3. d4 {[%emt 0:00:00]} cxd4 {[%emt 0:00:00]} 4. Nxd4 {[%emt 0:00:00]} Nf6 {[%emt 0:00:00]} 5. Nc3 {[%emt 0:00:00]} g6 {[%emt 0:00:00]} 6. f3 {[%emt 0:00:00]} Bg7 {[%emt 0:00:00]} 7. Be3 {[%emt 0:00:00]} O-O {[%emt 0:00:00]} 8. Qd2 {[%emt 0:00:00]} Nc6 {[%emt 0:00:00]} 9. O-O-O {[%emt 0:00:00]} d5 {[%emt 0:00:00]} 10. Nxc6 {[%emt 0:00:00]} bxc6 {[%emt 0:00:00]} 11. exd5 {[%emt 0:00:00]} Nxd5 {[%emt 0:00:00]} 12. Nxd5 {[%emt 0:00:00]} cxd5 {[%emt 0:00:00]} 13. Qxd5 {[%emt 0:00:00]} Qc7 {[%emt 0:00:00]} 14. Qc5 {[%emt 0:00:00]} Qb7 {[%emt 0:00:00]} 15. Qa3 {[%emt 0:00:00]} Bf5 {[%emt 0:02:41]} 16. Bd3 {[%emt 0:00:00]} Rab8 {[%emt 0:03:50]} 17. b3 {[%emt 0:00:00]} Qc6 {[%emt 0:02:52]} 18. Bxf5 {[%emt 0:00:00]} Qc3 {[%emt 0:04:06]} 19. Bd3 {[%emt 0:00:00]} Rbc8 {[%emt 0:07:41]} 20. Rhf1 {[%emt 0:09:12]} Rfd8 {[%emt 0:03:39]} 21. Rf2 {[%emt 0:00:31]} Rxd3 {[%emt 0:38:49]} 22. Rxd3 {[%emt 0:00:26]} Qxd3 {[%emt 0:00:33]} 23. Qxe7 {[%emt 0:00:48]} Qc3 {[%emt 0:04:44]} 24. Kd1 {[%emt 0:01:01]} Qa1+ {[%emt 0:06:35]} 25. Kd2 {[%emt 0:01:03]} Bf6 {[%emt 0:02:41]} 26. Qd7 {[%emt 0:01:17]} Rd8 {[%emt 0:01:05]} 27. Qxd8+ {[%emt 0:00:25]} Bxd8 {[%emt 0:00:25]} 28. Kd3 {[%emt 0:01:43]} Qxa2 {[%emt 0:01:41]} 29. Bd4 {[%emt 0:00:36]} Bb6 {[%emt 0:01:45]} 30. Re2 {[%emt 0:00:33]} Qa6+ {[%emt 0:01:01]} 31. c4 {[%emt 0:00:28]} Bxd4 {[%emt 0:00:25]} 32. Kxd4 {[%emt 0:00:26]} Qd6+ {[%emt 0:01:01]} 33. Kc3 {[%emt 0:00:26]} Qxh2 {[%emt 0:00:24]} 34. c5 {[%emt 0:00:42]} Qg1 {[%emt 0:01:59]} 35. b4 {[%emt 0:00:31]} a5 {[%emt 0:01:41]} 36. c6 {[%emt 0:05:01]} Qb6 {[%emt 0:03:57]} 37. bxa5 {[%emt 0:00:48]} Qxa5+ {[%emt 0:01:32]} 38. Kd4 {[%emt 0:00:32]} Qb6+ {[%emt 0:00:51]} 0-1

[Event "94th Paris-ch  2019"]
[Site "Paris"]
[Date "2019.07.07"]
[Round "1.18"]
[White "Manoeuvre, Antoine"]
[Black "Gervasio, Ricardo"]
[Result "0-1"]
[ECO "E35"]
[WhiteElo "2325"]
[BlackElo "2223"]
[Annotator "NA"]
[PlyCount "66"]
[EventDate "2019.07.07"]
[EventType "swiss"]
[EventCountry "FRA"]
[SourceTitle "playchess.com"]
[Source "ChessBase"]
[SourceQuality "1"]
[TimeControl "5400+30"]

1. d4 {[%emt 0:00:00]} Nf6 {[%emt 0:00:00]} 2. c4 {[%emt 0:00:00]} e6 {[%emt 0:00:00]} 3. Nc3 {[%emt 0:00:00]} Bb4 {[%emt 0:00:00]} 4. Qc2 {[%emt 0:00:00]} d5 {[%emt 0:01:41]} 5. cxd5 {[%emt 0:00:02]} exd5 {[%emt 0:01:03]} 6. Bg5 {[%emt 0:02:06]} Qd6 {[%emt 0:01:43]} 7. e3 {[%emt 0:05:45]} Ne4 {[%emt 0:09:20]} 8. Bf4 {[%emt 0:00:30]} Qc6 {[%emt 0:00:40]} 9. Rc1 {[%emt 0:01:30]} Bf5 {[%emt 0:09:56]} 10. Qb3 {[%emt 0:01:51]} Bxc3+ {[%emt 0:20:43]} 11. bxc3 {[%emt 0:00:32]} a6 {[%emt 0:00:09]} 12. f3 {[%emt 0:18:56]} Nf6 {[%emt 0:00:07]} 13. Ne2 {[%emt 0:03:04]} Bd3 {[%emt 0:06:51]} 14. Ng3 {[%emt 0:00:54]} Bxf1 {[%emt 0:00:10]} 15. Rxf1 {[%emt 0:00:16]} O-O {[%emt 0:01:48]} 16. c4 {[%emt 0:09:30]} b5 {[%emt 0:02:00]} 17. c5 {[%emt 0:00:33]} Re8 {[%emt 0:04:43]} 18. Kf2 {[%emt 0:00:30]} Qd7 {[%emt 0:02:41]} 19. a4 {[%emt 0:05:02]} Nc6 {[%emt 0:02:58]} 20. axb5 {[%emt 0:01:29]} axb5 {[%emt 0:00:01]} 21. Ra1 {[%emt 0:03:54]} h6 {[%emt 0:03:28]} 22. h4 {[%emt 0:02:00]} Na5 {[%emt 0:02:46]} 23. Qc3 {[%emt 0:02:05]} Nc4 {[%emt 0:00:08]} 24. Rxa8 {[%emt 0:00:27]} Rxa8 {[%emt 0:00:10]} 25. Ra1 {[%emt 0:00:05]} Ra4 {[%emt 0:04:56]} 26. Rxa4 {[%emt 0:11:34]} bxa4 {[%emt 0:00:09]} 27. Qb4 {[%emt 0:00:04]} a3 {[%emt 0:00:06]} 28. Qb8+ {[%emt 0:02:33]} Qe8 {[%emt 0:03:40]} 29. Qxc7 {[%emt 0:02:42]} Qa8 {[%emt 0:00:15]} 30. Bxh6 {[%emt 0:04:20]} a2 {[%emt 0:00:56]} 31. Bxg7 {[%emt 0:00:29]} Ne8 {[%emt 0:01:48]} 32. Qe7 {[%emt 0:01:05]} Nxg7 {[%emt 0:00:17]} 33. Qg5 {[%emt 0:00:04]} f6 {[%emt 0:01:25]} 0-1